fUST/lending_fUST_20250614
["ID","MTS","AMOUNT","RATE_DAILY","PERIOD"]
[365781961,1749910045109,-8782.73665778,0.00021057,2]
[365781967,1749910148135,-2084.19973794,0.00020311,2]
[365781968,1749910150083,-4170.86952758,0.00020311,2]
[365782001,1749910232289,-300.0,0.0002031,2]
[365782003,1749910232299,-300.0,0.0002031,2]
[365782005,1749910232308,-300.0,0.0002031,2]
[365782007,1749910232317,-1200.0,0.0002031,2]
[365782009,1749910232327,-8380.3474107,0.00020311,2]
[365782014,1749910232402,-438.32,0.00020311,2]
[365782050,1749910238072,-6309.2075714,0.00020311,2]
[365782052,1749910238089,-3517.05575238,0.00020311,2]
[365782055,1749910238103,-171.53130418,0.00020438,2]
[365782057,1749910238117,-321.9092121,0.00020771,2]
[365782059,1749910238131,-183.68821529,0.00021054,2]
[365782060,1749910238144,-1079.95796684,0.00021057,2]
[365782061,1749910238166,-788.69035078,0.00021057,2]
[365782062,1749910238180,-14131.35168238,0.00021057,2]
[365782063,1749910238193,-10179.36797243,0.00021057,2]
[365782064,1749910238205,-500.0,0.00021154,2]
[365782065,1749910238217,-168.0,0.0002118,2]
[365782066,1749910238231,-253.44662524,0.00021259,2]
[365782067,1749910238245,-152.623,0.00021259,2]
[365782069,1749910238270,-1062.88069431,0.000213,2]
[365782072,1749910238288,-408.11930569,0.000213,2]
[365782075,1749910238303,-1344.54,0.00021415,2]
[365782076,1749910238321,-168.0,0.00021504,2]
[365782077,1749910238338,-16000.0,0.00021605,2]
[365782078,1749910238349,-168.0,0.00021666,2]
[365782079,1749910238361,-442.31160679,0.00021704,2]
[365782081,1749910238372,-168.0,0.00021782,2]
[365782082,1749910238390,-1561.81895779,0.00021817,2]
[365782083,1749910238402,-529.83501144,0.000219,6]
[365782084,1749910238417,-168.0,0.00021905,2]
[365782085,1749910238429,-324.9,0.00021907,3]
[365782086,1749910238444,-162.45,0.00021907,3]
[365782087,1749910238457,-487.37,0.00021907,3]
[365782088,1749910238470,-528.68,0.00021907,3]
[365782089,1749910238483,-184.62606876,0.00021916,2]
[365782090,1749910238496,-500.0,0.00021916,2]
[365782091,1749910238509,-500.0,0.00021916,2]
[365782092,1749910238521,-524.24689768,0.00021916,2]
[365782093,1749910238534,-500.0,0.00021916,2]
[365782094,1749910238547,-500.0,0.00021916,2]
[365782095,1749910238559,-160.0,0.00021916,2]
[365782096,1749910238572,-500.0,0.00021916,2]
[365782097,1749910238584,-500.0,0.00021916,2]
[365782098,1749910238595,-500.0,0.00021916,2]
[365782099,1749910238607,-152.85067472,0.00021916,2]
[365782100,1749910238619,-472.37024606,0.00021916,2]
[365782101,1749910238631,-513.60955921,0.00021916,2]
[365782102,1749910238642,-500.0,0.00021916,2]
[365782103,1749910238653,-500.0,0.00021916,2]
[365782104,1749910238664,-500.0,0.00021916,2]
[365782105,1749910238676,-394.78419633,0.00021916,2]
[365782106,1749910238689,-500.0,0.00021916,2]
[365782107,1749910238700,-500.0,0.00021916,2]
[365782108,1749910238712,-500.0,0.00021916,2]
[365782109,1749910238723,-500.0,0.00021916,2]
[365782110,1749910238735,-500.0,0.00021916,2]
[365782111,1749910238746,-183.15240256,0.00021916,2]
[365782112,1749910238762,-500.0,0.00021916,2]
[365782113,1749910238774,-500.0,0.00021916,2]
[365782114,1749910238785,-445.17908778,0.00021917,4]
[365782115,1749910238798,-441.97232898,0.00021917,4]
[365782116,1749910238809,-440.0,0.00021917,4]
[365782118,1749910238820,-474.09416613,0.00021917,4]
[365782120,1749910238831,-440.0,0.00021917,4]
[365782123,1749910238847,-222.96500198,0.00021917,4]
[365782125,1749910238860,-440.0,0.00021917,4]
[365782127,1749910238872,-444.20666118,0.00021917,4]
[365782130,1749910238884,-460.0,0.00021917,4]
[365782132,1749910238896,-440.0,0.00021917,4]
[365782134,1749910238908,-460.0,0.00021917,4]
[365782136,1749910238921,-430.0,0.00021917,4]
[365782138,1749910238933,-460.0,0.00021917,4]
[365782141,1749910238945,-440.0,0.00021917,4]
[365782143,1749910238958,-441.33120913,0.00021917,4]
[365782144,1749910238970,-440.0,0.00021917,4]
[365782145,1749910238983,-454.04085624,0.00021917,4]
[365782146,1749910238993,-451.7783343,0.00021917,4]
[365782147,1749910239002,-440.0,0.00021917,4]
[365782148,1749910239012,-460.0,0.00021917,4]
[365782149,1749910239022,-440.0,0.00021917,4]
[365782150,1749910239031,-440.0,0.00021917,4]
[365782151,1749910239198,-440.0,0.00021917,4]
[365782152,1749910239216,-240.03117635,0.00021917,4]
[365782153,1749910239226,-460.0,0.00021917,4]
[365782154,1749910239238,-456.89410942,0.00021917,4]
[365782155,1749910239248,-460.0,0.00021917,4]
[365782156,1749910239258,-440.0,0.00021917,4]
[365782157,1749910239268,-440.0,0.00021917,4]
[365782158,1749910239278,-430.0,0.00021917,4]
[365782159,1749910239288,-582.3619339,0.00021917,4]
[365782160,1749910239298,-460.0,0.00021917,4]
[365782161,1749910239308,-430.0,0.00021917,4]
[365782162,1749910239317,-294.88729475,0.00021917,4]
[365782163,1749910239326,-430.0,0.00021917,4]
[365782164,1749910239336,-460.0,0.00021917,4]
[365782165,1749910239345,-440.0,0.00021917,4]
[365782166,1749910239354,-440.0,0.00021917,4]
[365782167,1749910239364,-427.01433115,0.00021917,4]
[365782168,1749910239374,-460.0,0.00021917,4]
[365782169,1749910239384,-440.0,0.00021917,4]
[365782170,1749910239394,-460.0,0.00021917,4]
[365782171,1749910239404,-432.78983242,0.00021917,4]
[365782172,1749910239414,-440.0,0.00021917,4]
[365782173,1749910239423,-460.0,0.00021917,4]
[365782174,1749910239433,-440.0,0.00021917,4]
[365782175,1749910239443,-460.0,0.00021917,4]
[365782176,1749910239452,-347.9317554,0.00021917,4]
[365782177,1749910239462,-440.0,0.00021917,4]
[365782178,1749910239472,-460.0,0.00021917,4]
[365782179,1749910239481,-433.0051875,0.00021917,4]
[365782180,1749910239491,-460.0,0.00021917,4]
[365782181,1749910239502,-440.0,0.00021917,4]
[365782182,1749910239512,-440.0,0.00021917,4]
[365782183,1749910239521,-440.0,0.00021917,4]
[365782184,1749910239531,-430.0,0.00021917,4]
[365782185,1749910239540,-460.0,0.00021917,4]
[365782186,1749910239549,-355.94100041,0.00021917,4]
[365782187,1749910239558,-438.49451351,0.00021917,4]
[365782188,1749910239567,-440.0,0.00021917,4]
[365782189,1749910239577,-460.0,0.00021917,4]
[365782190,1749910239586,-430.75628872,0.00021917,4]
[365782191,1749910239595,-460.0,0.00021917,4]
[365782192,1749910239605,-407.82564367,0.00021917,4]
[365782193,1749910239615,-460.0,0.00021917,4]
[365782194,1749910239624,-460.0,0.00021917,4]
[365782195,1749910239634,-440.0,0.00021917,4]
[365782197,1749910239644,-430.0,0.00021917,4]
[365782198,1749910239656,-440.0,0.00021917,4]
[365782199,1749910239665,-460.0,0.00021917,4]
[365782200,1749910239676,-460.0,0.00021917,4]
[365782201,1749910239686,-460.0,0.00021917,4]
[365782202,1749910239696,-460.0,0.00021917,4]
[365782203,1749910239705,-460.0,0.00021917,4]
[365782204,1749910239715,-984.78,0.00021917,4]
[365782205,1749910239725,-460.0,0.00021917,4]
[365782206,1749910239735,-423.5571818,0.00021917,4]
[365782207,1749910239745,-483.93722922,0.00021917,4]
[365782208,1749910239758,-460.0,0.00021917,4]
[365782209,1749910239767,-160.99474585,0.00021917,4]
[365782210,1749910239777,-460.0,0.00021917,4]
[365782211,1749910239786,-460.0,0.00021917,4]
[365782212,1749910239796,-460.0,0.00021917,4]
[365782213,1749910239806,-460.0,0.00021917,4]
[365782214,1749910239815,-460.0,0.00021917,4]
[365782215,1749910239826,-460.0,0.00021917,4]
[365782216,1749910239836,-310.0,0.00021917,4]
[365782217,1749910239846,-460.0,0.00021917,4]
[365782218,1749910239855,-460.0,0.00021917,4]
[365782219,1749910239865,-460.0,0.00021917,4]
[365782220,1749910239874,-390.0,0.00021917,4]
[365782221,1749910239884,-440.0,0.00021917,4]
[365782222,1749910239893,-460.0,0.00021917,4]
[365782223,1749910239902,-460.0,0.00021917,4]
[365782224,1749910239912,-460.0,0.00021917,4]
[365782225,1749910239923,-460.0,0.00021917,4]
[365782226,1749910239933,-430.0,0.00021917,4]
[365782227,1749910239943,-460.0,0.00021917,4]
[365782228,1749910239952,-460.0,0.00021917,4]
[365782229,1749910239962,-430.0,0.00021917,4]
[365782230,1749910239971,-460.0,0.00021917,4]
[365782231,1749910239981,-460.0,0.00021917,4]
[365782232,1749910239990,-440.0,0.00021917,4]
[365782233,1749910240000,-266.87892435,0.00021917,4]
[365782234,1749910240009,-460.0,0.00021917,4]
[365782235,1749910240019,-460.0,0.00021917,4]
[365782236,1749910240028,-400.0,0.00021917,4]
[365782237,1749910240039,-430.0,0.00021917,4]
[365782238,1749910240048,-460.0,0.00021917,4]
[365782240,1749910240059,-500.0,0.00021917,4]
[365782242,1749910240069,-460.0,0.00021917,4]
[365782244,1749910240079,-460.0,0.00021917,4]
[365782246,1749910240088,-460.0,0.00021917,4]
[365782248,1749910240098,-460.0,0.00021917,4]
[365782250,1749910240107,-476.29080223,0.00021917,4]
[365782252,1749910240117,-460.0,0.00021917,4]
[365782254,1749910240126,-449.67162626,0.00021917,4]
[365782256,1749910240135,-460.0,0.00021917,4]
[365782258,1749910240145,-460.0,0.00021917,4]
[365782260,1749910240154,-189.31241294,0.00021917,4]
[365782262,1749910240164,-460.0,0.00021917,4]
[365782264,1749910240173,-460.0,0.00021917,4]
[365782266,1749910240183,-430.0,0.00021917,4]
[365782268,1749910240192,-460.0,0.00021917,4]
[365782270,1749910240202,-481.32024323,0.00021917,4]
[365782272,1749910240212,-404.15921709,0.00021917,2]
[365782274,1749910240222,-460.0,0.00021917,4]
[365782276,1749910240232,-440.0,0.00021917,4]
[365782278,1749910240241,-440.0,0.00021917,4]
[365782279,1749910240251,-440.0,0.00021917,4]
[365782281,1749910240260,-320.0,0.00021917,4]
[365782283,1749910240270,-460.0,0.00021917,4]
[365782285,1749910240279,-460.0,0.00021917,4]
[365782287,1749910240289,-460.0,0.00021917,4]
[365782289,1749910240298,-460.0,0.00021917,4]
[365782292,1749910240308,-460.0,0.00021917,4]
[365782294,1749910240317,-443.4521174,0.00021917,4]
[365782295,1749910240327,-440.0,0.00021917,4]
[365782296,1749910240336,-460.0,0.00021917,4]
[365782297,1749910240346,-719.31,0.00021917,4]
[365782298,1749910240355,-460.0,0.00021917,4]
[365782299,1749910240365,-481.03973395,0.00021917,4]
[365782300,1749910240374,-460.0,0.00021917,4]
[365782301,1749910240384,-430.0,0.00021917,4]
[365782302,1749910240394,-430.0,0.00021917,4]
[365782303,1749910240404,-440.0,0.00021917,4]
[365782304,1749910240414,-430.0,0.00021917,4]
[365782305,1749910240424,-154.69531629,0.00021917,4]
[365782306,1749910240434,-460.0,0.00021917,4]
[365782307,1749910240443,-500.0,0.00021917,4]
[365782308,1749910240453,-500.0,0.00021917,4]
[365782309,1749910240464,-500.0,0.00021917,4]
[365782310,1749910240474,-500.0,0.00021917,4]
[365782311,1749910240484,-500.0,0.00021917,4]
[365782312,1749910240493,-500.0,0.00021917,4]
[365782313,1749910240503,-500.0,0.00021917,4]
[365782314,1749910240512,-500.0,0.00021917,4]
[365782315,1749910240522,-500.0,0.00021917,4]
[365782316,1749910240531,-500.0,0.00021917,4]
[365782317,1749910240541,-500.0,0.00021917,4]
[365782318,1749910240550,-524.16,0.00021917,4]
[365782319,1749910240560,-430.0,0.00021917,4]
[365782320,1749910240571,-2958.13,0.00021917,4]
[365782321,1749910240580,-460.0,0.00021917,4]
[365782322,1749910240589,-430.0,0.00021917,4]
[365782323,1749910240598,-460.0,0.00021917,4]
[365782324,1749910240608,-460.0,0.00021917,4]
[365782325,1749910240618,-460.0,0.00021917,4]
[365782326,1749910240627,-440.0,0.00021917,4]
[365782327,1749910240638,-460.0,0.00021917,4]
[365782328,1749910240647,-460.0,0.00021917,4]
[365782329,1749910240656,-460.0,0.00021917,4]
[365782330,1749910240665,-1034.19,0.00021917,4]
[365782331,1749910240674,-430.0,0.00021917,4]
[365782332,1749910240683,-430.0,0.00021917,4]
[365782333,1749910240693,-460.0,0.00021917,4]
[365782334,1749910240702,-460.0,0.00021917,4]
[365782335,1749910240712,-460.0,0.00021917,4]
[365782336,1749910240721,-460.0,0.00021917,4]
[365782337,1749910240731,-608.47,0.00021917,4]
[365782338,1749910240740,-500.0,0.00021917,4]
[365782339,1749910240751,-460.0,0.00021917,4]
[365782340,1749910240764,-460.0,0.00021917,4]
[365782341,1749910240774,-460.0,0.00021917,4]
[365782342,1749910240783,-460.0,0.00021917,4]
[365782343,1749910240793,-460.0,0.00021917,4]
[365782344,1749910240803,-460.0,0.00021917,4]
[365782345,1749910240814,-460.0,0.00021917,4]
[365782346,1749910240823,-390.0,0.00021917,4]
[365782347,1749910240834,-500.0,0.00021917,4]
[365782348,1749910240844,-507.54581561,0.00021917,4]
[365782349,1749910240854,-410.0,0.00021917,4]
[365782350,1749910240863,-460.0,0.00021917,4]
[365782351,1749910240872,-460.0,0.00021917,4]
[365782352,1749910240882,-460.0,0.00021917,4]
[365782353,1749910240891,-460.0,0.00021917,4]
[365782354,1749910240900,-440.0,0.00021917,4]
[365782355,1749910240910,-460.0,0.00021917,4]
[365782356,1749910240919,-460.0,0.00021917,4]
[365782358,1749910240929,-460.0,0.00021917,4]
[365782360,1749910240939,-300.0,0.00021917,4]
[365782362,1749910240951,-425.43897391,0.00021917,4]
[365782364,1749910240961,-460.0,0.00021917,4]
[365782366,1749910240971,-229.48733796,0.00021917,4]
[365782368,1749910240982,-452.94259567,0.00021917,4]
[365782370,1749910240991,-460.0,0.00021917,4]
[365782372,1749910241000,-561.83,0.00021917,4]
[365782374,1749910241009,-460.0,0.00021917,4]
[365782376,1749910241019,-460.0,0.00021917,4]
[365782378,1749910241028,-460.0,0.00021917,4]
[365782380,1749910241037,-450.0,0.00021917,4]
[365782382,1749910241047,-440.0,0.00021917,4]
[365782384,1749910241056,-430.0,0.00021917,4]
[365782386,1749910241066,-460.0,0.00021917,4]
[365782389,1749910241076,-460.0,0.00021917,4]
[365782390,1749910241085,-2807.41,0.00021917,4]
[365782392,1749910241095,-440.0,0.00021917,4]
[365782394,1749910241105,-460.0,0.00021917,4]
[365782397,1749910241114,-430.91064601,0.00021917,4]
[365782398,1749910241124,-468.6610821,0.00021917,4]
[365782401,1749910241133,-440.0,0.00021917,4]
[365782402,1749910241142,-460.0,0.00021917,4]
[365782404,1749910241152,-443.46620302,0.00021917,4]
[365782406,1749910241161,-440.0,0.00021917,4]
[365782408,1749910241171,-460.0,0.00021917,4]
[365782410,1749910241180,-868.83,0.00021917,4]
[365782412,1749910241191,-460.0,0.00021917,4]
[365782415,1749910241201,-440.0,0.00021917,4]
[365782417,1749910241210,-460.0,0.00021917,4]
[365782419,1749910241220,-304.85327493,0.00021917,4]
[365782421,1749910241231,-460.0,0.00021917,4]
[365782423,1749910241241,-460.0,0.00021917,4]
[365782425,1749910241251,-460.0,0.00021917,4]
[365782427,1749910241261,-460.0,0.00021917,4]
[365782429,1749910241271,-440.0,0.00021917,4]
[365782431,1749910241281,-440.0,0.00021917,4]
[365782433,1749910241290,-440.0,0.00021917,4]
[365782435,1749910241299,-460.0,0.00021917,4]
[365782437,1749910241308,-460.0,0.00021917,4]
[365782439,1749910241318,-460.0,0.00021917,4]
[365782440,1749910241327,-460.0,0.00021917,4]
[365782442,1749910241337,-440.0,0.00021917,4]
[365782445,1749910241346,-2467.04,0.00021917,4]
[365782446,1749910241355,-460.0,0.00021917,4]
[365782449,1749910241365,-460.0,0.00021917,4]
[365782451,1749910241376,-460.0,0.00021917,4]
[365782452,1749910241385,-1226.2,0.00021917,4]
[365782454,1749910241394,-500.0,0.00021917,4]
[365782456,1749910241404,-460.0,0.00021917,4]
[365782459,1749910241414,-460.0,0.00021917,4]
[365782461,1749910241424,-440.0,0.00021917,4]
[365782463,1749910241434,-2106.91,0.00021917,4]
[365782464,1749910241444,-430.0,0.00021917,4]
[365782466,1749910241453,-440.0,0.00021917,4]
[365782468,1749910241463,-460.0,0.00021917,4]
[365782470,1749910241472,-413.94152853,0.00021917,4]
[365782472,1749910241482,-460.0,0.00021917,4]
[365782474,1749910241491,-460.0,0.00021917,4]
[365782476,1749910241500,-460.0,0.00021917,4]
[365782478,1749910241510,-460.0,0.00021917,4]
[365782480,1749910241519,-460.0,0.00021917,4]
[365782482,1749910241528,-440.0,0.00021917,4]
[365782484,1749910241538,-460.0,0.00021917,4]
[365782486,1749910241547,-460.0,0.00021917,4]
[365782488,1749910241557,-460.0,0.00021917,4]
[365782490,1749910241569,-430.0,0.00021917,4]
[365782492,1749910241579,-440.0,0.00021917,4]
[365782494,1749910241588,-440.0,0.00021917,4]
[365782496,1749910241598,-460.0,0.00021917,4]
[365782498,1749910241607,-477.79,0.00021917,4]
[365782500,1749910241617,-1996.77,0.00021917,4]
[365782502,1749910241626,-460.0,0.00021917,4]
[365782504,1749910241635,-460.0,0.00021917,4]
[365782506,1749910241645,-460.0,0.00021917,4]
[365782508,1749910241655,-460.0,0.00021917,4]
[365782510,1749910241664,-460.0,0.00021917,4]
[365782512,1749910241674,-440.0,0.00021917,4]
[365782514,1749910241683,-460.0,0.00021917,4]
[365782516,1749910241693,-460.0,0.00021917,4]
[365782518,1749910241703,-3628.01,0.00021917,4]
[365782520,1749910241712,-460.0,0.00021917,4]
[365782522,1749910241721,-444.02955047,0.00021917,4]
[365782524,1749910241731,-460.0,0.00021917,2]
[365782526,1749910241740,-460.0,0.00021917,4]
[365782528,1749910241750,-460.0,0.00021917,4]
[365782530,1749910241763,-460.0,0.00021917,4]
[365782532,1749910241774,-460.0,0.00021917,4]
[365782534,1749910241784,-440.0,0.00021917,4]
[365782536,1749910241793,-460.0,0.00021917,4]
[365782538,1749910241804,-460.0,0.00021917,4]
[365782540,1749910241814,-3294.11,0.00021917,4]
[365782542,1749910241823,-460.0,0.00021917,4]
[365782543,1749910241928,-440.0,0.00021917,4]
[365782544,1749910241939,-700.42,0.00021917,4]
[365782546,1749910241948,-1234.47,0.00021917,4]
[365782547,1749910241958,-460.0,0.00021917,4]
[365782548,1749910241968,-460.0,0.00021917,4]
[365782549,1749910241977,-460.0,0.00021917,4]
[365782550,1749910241987,-440.48983051,0.00021917,4]
[365782551,1749910241997,-440.0,0.00021917,4]
[365782552,1749910242007,-460.0,0.00021917,4]
[365782553,1749910242016,-440.0,0.00021917,4]
[365782554,1749910242026,-615.07,0.00021917,4]
[365782555,1749910242035,-460.0,0.00021917,4]
[365782556,1749910242045,-460.0,0.00021917,4]
[365782557,1749910242055,-430.0,0.00021917,4]
[365782558,1749910242064,-980.96,0.00021917,4]
[365782559,1749910242074,-460.0,0.00021917,4]
[365782560,1749910242083,-444.05612593,0.00021917,4]
[365782561,1749910242093,-474.78427691,0.00021917,4]
[365782562,1749910242103,-460.0,0.00021917,4]
[365782563,1749910242113,-431.42807953,0.00021917,4]
[365782564,1749910242123,-460.0,0.00021917,4]
[365782565,1749910242133,-460.0,0.00021917,4]
[365782566,1749910242142,-1829.51,0.00021917,4]
[365782567,1749910242152,-430.0,0.00021917,4]
[365782568,1749910242162,-460.0,0.00021917,4]
[365782569,1749910242171,-460.0,0.00021917,4]
[365782570,1749910242181,-440.0,0.00021917,4]
[365782571,1749910242191,-440.0,0.00021917,4]
[365782572,1749910242200,-460.0,0.00021917,4]
[365782573,1749910242210,-446.2529394,0.00021917,4]
[365782574,1749910242220,-460.0,0.00021917,4]
[365782575,1749910242230,-460.0,0.00021917,4]
[365782576,1749910242240,-447.50886659,0.00021917,4]
[365782577,1749910242249,-460.0,0.00021917,4]
[365782578,1749910242258,-1467.6,0.00021917,4]
[365782579,1749910242268,-460.0,0.00021917,4]
[365782580,1749910242277,-535.6424669,0.00021917,4]
[365782581,1749910242287,-2528.24,0.00021917,4]
[365782582,1749910242296,-460.0,0.00021917,4]
[365782583,1749910242306,-412.44957625,0.00021917,4]
[365782584,1749910242315,-460.0,0.00021917,4]
[365782585,1749910242324,-460.0,0.00021917,4]
[365782586,1749910242334,-500.0,0.00021917,4]
[365782587,1749910242344,-460.0,0.00021917,4]
[365782588,1749910242353,-460.0,0.00021917,4]
[365782589,1749910242363,-460.0,0.00021917,4]
[365782590,1749910242372,-460.0,0.00021917,4]
[365782591,1749910242381,-483.61669728,0.00021917,4]
[365782592,1749910242391,-300.0,0.00021966,2]
[365782593,1749910242400,-500.0,0.00021973,2]
[365782594,1749910242409,-500.0,0.00021973,2]
[365782595,1749910242419,-500.0,0.00021973,2]
[365782596,1749910242428,-210.74023109,0.00021973,2]
[365782597,1749910242438,-500.0,0.00021973,2]
[365782598,1749910242447,-3439.46512918,0.00022,2]
[365782599,1749910242456,-5000.0,0.00022,5]
[365782600,1749910242465,-182.0,0.00022,2]
[365782601,1749910242475,-529.83501143,0.00022003,6]
[365782602,1749910242484,-14959.54077724,0.00022091,2]
[365782603,1749910242493,-529.83501143,0.00022107,6]
[365782604,1749910242503,-398.0,0.00022108,2]
[365782605,1749910242512,-420.0,0.00022108,2]
[365782606,1749910242521,-501.67923764,0.00022173,2]
[365782607,1749910242533,-500.0,0.00022173,2]
[365782608,1749910242543,-500.0,0.00022173,2]
[365782609,1749910242552,-501.16145131,0.00022173,2]
[365782610,1749910242563,-500.0,0.00022173,2]
[365782611,1749910242573,-460.0,0.00022191,4]
[365782612,1749910242582,-460.0,0.00022191,4]
[365782613,1749910242592,-460.0,0.00022191,4]
[365782614,1749910242601,-460.0,0.00022191,4]
[365782615,1749910242610,-460.0,0.00022191,4]
[365782617,1749910242619,-460.0,0.00022191,4]
[365782619,1749910242629,-460.0,0.00022191,4]
[365782620,1749910242639,-440.0,0.00022191,4]
[365782621,1749910242651,-460.0,0.00022191,4]
[365782622,1749910242661,-460.0,0.00022191,4]
[365782623,1749910242670,-460.0,0.00022191,4]
[365782624,1749910242680,-310.0,0.00022191,4]
[365782625,1749910242689,-460.0,0.00022191,4]
[365782626,1749910242698,-240.0,0.00022191,4]
[365782627,1749910242707,-460.0,0.00022191,4]
[365782628,1749910242717,-460.0,0.00022191,4]
[365782629,1749910242726,-307.34155564,0.00022191,4]
[365782630,1749910242736,-460.0,0.00022191,4]
[365782631,1749910242745,-390.0,0.00022191,4]
[365782632,1749910242757,-984.78,0.00022191,4]
[365782633,1749910242767,-460.0,0.00022191,4]
[365782634,1749910242776,-460.0,0.00022191,4]
[365782635,1749910242785,-154.39118639,0.00022191,4]
[365782636,1749910242795,-460.0,0.00022191,4]
[365782637,1749910242806,-240.0,0.00022191,4]
[365782638,1749910242824,-460.0,0.00022191,4]
[365782639,1749910242836,-422.62766146,0.00022191,4]
[365782640,1749910242846,-410.0,0.00022191,4]
[365782641,1749910242856,-370.0,0.00022191,4]
[365782642,1749910242866,-410.0,0.00022191,4]
[365782644,1749910242876,-400.0,0.00022191,4]
[365782645,1749910242886,-460.0,0.00022191,4]
[365782646,1749910242895,-460.0,0.00022191,4]
[365782648,1749910242905,-174.49008992,0.00022191,4]
[365782650,1749910242915,-460.0,0.00022191,4]
[365782652,1749910242925,-460.0,0.00022191,4]
[365782653,1749910242936,-460.0,0.00022191,4]
[365782654,1749910242947,-460.0,0.00022191,4]
[365782655,1749910242957,-460.0,0.00022191,4]
[365782656,1749910242967,-460.0,0.00022191,4]
[365782658,1749910242977,-460.0,0.00022191,4]
[365782659,1749910242987,-460.0,0.00022191,4]
[365782660,1749910242997,-460.0,0.00022191,4]
[365782661,1749910243007,-460.0,0.00022191,4]
[365782662,1749910243017,-460.0,0.00022191,4]
[365782663,1749910243027,-460.0,0.00022191,4]
[365782665,1749910243037,-460.0,0.00022191,4]
[365782667,1749910243047,-460.0,0.00022191,4]
[365782669,1749910243058,-360.0,0.00022191,4]
[365782670,1749910243067,-460.0,0.00022191,4]
[365782671,1749910243077,-719.31,0.00022191,4]
[365782672,1749910243087,-150.5111075,0.00022191,4]
[365782673,1749910243097,-460.0,0.00022191,4]
[365782674,1749910243107,-460.0,0.00022191,4]
[365782675,1749910243117,-2958.13,0.00022191,4]
[365782676,1749910243127,-420.0,0.00022191,4]
[365782677,1749910243138,-460.0,0.00022191,4]
[365782678,1749910243148,-460.0,0.00022191,4]
[365782679,1749910243158,-460.0,0.00022191,4]
[365782680,1749910243167,-430.0,0.00022191,4]
[365782681,1749910243177,-1034.19,0.00022191,4]
[365782682,1749910243187,-460.0,0.00022191,4]
[365782683,1749910243198,-460.0,0.00022191,4]
[365782684,1749910243208,-410.0,0.00022191,4]
[365782685,1749910243218,-460.0,0.00022191,4]
[365782686,1749910243229,-608.47,0.00022191,4]
[365782687,1749910243239,-460.0,0.00022191,4]
[365782688,1749910243249,-460.0,0.00022191,4]
[365782689,1749910243259,-460.0,0.00022191,4]
[365782690,1749910243268,-460.0,0.00022191,4]
[365782691,1749910243278,-460.0,0.00022191,4]
[365782692,1749910243287,-440.0,0.00022191,4]
[365782693,1749910243296,-460.0,0.00022191,4]
[365782694,1749910243306,-460.0,0.00022191,4]
[365782695,1749910243316,-460.0,0.00022191,4]
[365782696,1749910243325,-460.0,0.00022191,4]
[365782697,1749910243334,-460.0,0.00022191,4]
[365782698,1749910243343,-460.0,0.00022191,4]
[365782699,1749910243353,-460.0,0.00022191,4]